fUSD/lending_fUSD_20260114
["ID","MTS","AMOUNT","RATE_DAILY","PERIOD"]
[401980449,1768434642867,-500.0,0.00039069,60]
[401980451,1768434642876,-150.0,0.00039069,60]
[401980453,1768434642885,-150.0,0.00039069,60]
[401980455,1768434642894,-150.0,0.00039069,60]
[401980457,1768434642902,-150.0,0.00039069,60]
[401980459,1768434642911,-500.0,0.00039069,60]
[401980461,1768434642920,-150.0,0.00039069,60]
[401980463,1768434642929,-150.0,0.00039069,60]
[401980465,1768434642938,-174.78328857,0.00039069,60]
[401980467,1768434642948,-150.0,0.00039069,60]
[401980469,1768434642958,-500.0,0.00039069,60]
[401980470,1768434642967,-500.0,0.00039069,2]
[401980474,1768434642976,-150.0,0.00039069,60]
[401980476,1768434642985,-500.0,0.00039069,60]
[401980477,1768434642994,-648.69425671,0.00039069,60]
[401980479,1768434643003,-500.0,0.00039069,60]
[401980481,1768434643012,-500.0,0.00039069,60]
[401980483,1768434643021,-530.66926965,0.00039069,60]
[401980485,1768434643035,-500.0,0.00039069,60]
[401980486,1768434643044,-500.0,0.00039069,60]
[401980487,1768434643053,-500.0,0.00039069,60]
[401980488,1768434643062,-157.31867032,0.00039069,60]
[401980489,1768434643071,-150.0,0.00039069,60]
[401980490,1768434643080,-150.0,0.00039069,60]
[401980491,1768434643090,-150.0,0.00039069,60]
[401980492,1768434643099,-458.07906,0.00039088,30]
[401980493,1768434643111,-200.0,0.00039123,60]
[401980494,1768434643119,-150.0,0.00039123,60]
[401980495,1768434643128,-185.36700145,0.00039123,60]
[401980496,1768434643137,-150.0,0.00039123,60]
[401980497,1768434643146,-154.47382576,0.00039123,60]
[401980498,1768434643155,-500.0,0.00039123,60]
[401980499,1768434643163,-202.08698658,0.00039123,60]
[401980500,1768434643172,-150.0,0.00039123,60]
[401980501,1768434643180,-150.0,0.00039123,60]
[401980502,1768434643189,-486.0,0.00039123,60]
[401980504,1768434643198,-500.0,0.00039123,2]
[401980507,1768434643207,-150.0,0.00039123,60]
[401980510,1768434643216,-578.52589726,0.00039123,60]
[401980512,1768434643225,-516.31193931,0.00039123,60]
[401980514,1768434643234,-500.0,0.00039123,60]
[401980516,1768434643244,-150.0,0.00039123,60]
[401980518,1768434643253,-500.0,0.00039123,60]
[401980520,1768434643263,-157.03274317,0.00039178,60]
[401980522,1768434643274,-500.0,0.00039178,60]
[401980524,1768434643283,-250.0,0.00039178,60]
[401980526,1768434643292,-150.0,0.00039178,60]
[401980528,1768434643301,-500.0,0.00039178,2]
[401980530,1768434643310,-150.0,0.00039178,60]
[401980532,1768434643319,-500.0,0.00039178,60]
[401980534,1768434643328,-500.0,0.00039178,60]
[401980536,1768434643337,-758.84,0.000392,14]
[401980538,1768434643347,-1331.0,0.00039219,2]
[401980540,1768434643356,-3470.0,0.00039219,2]
[401980542,1768434643365,-614.0,0.00039219,2]
[401980544,1768434643375,-1405.0,0.00039219,2]
[401980546,1768434643384,-566.0,0.00039219,2]
[401980548,1768434643393,-6557.0,0.00039219,2]
[401980550,1768434643402,-2438.0,0.00039219,2]
[401980552,1768434643411,-500.0,0.00039233,60]
[401980554,1768434643420,-151.76174465,0.00039233,60]
[401980556,1768434643429,-250.0,0.00039233,60]
[401980558,1768434643439,-500.0,0.00039233,60]
[401980560,1768434643448,-500.0,0.00039288,60]
[401980562,1768434643459,-500.0,0.00039288,60]
[401980564,1768434643468,-458.07906,0.00039288,30]
[401980566,1768434643477,-500.0,0.00039343,60]
[401980568,1768434643487,-500.0,0.00039343,60]
[401980570,1768434643498,-1967.789,0.00039349,54]
[401980572,1768434643507,-500.0,0.00039397,60]
[401980574,1768434643516,-500.0,0.00039397,60]
[401980576,1768434643526,-500.0,0.00039452,60]
[401980578,1768434643535,-500.0,0.00039452,60]
[401980580,1768434643544,-6157.84376205,0.00039464,5]
[401980582,1768434643554,-3645.83545376,0.00039464,5]
[401980584,1768434643563,-458.07906,0.00039488,30]
[401980586,1768434643572,-500.0,0.00039507,60]
[401980588,1768434643582,-500.0,0.00039507,60]
[401980590,1768434643591,-500.0,0.00039562,60]
[401980592,1768434643601,-500.0,0.00039562,60]
[401980594,1768434643610,-1356.9,0.00039609,120]
[401980597,1768434643620,-500.0,0.00039617,60]
[401980598,1768434643629,-500.0,0.00039617,60]
[401980600,1768434643639,-500.0,0.00039671,60]
[401980602,1768434643648,-355.92481471,0.00039671,60]
[401980604,1768434643657,-458.07906,0.00039688,30]
[401980606,1768434643666,-500.0,0.00039726,60]
[401980608,1768434643675,-2206.35011691,0.00039777,2]
[401980610,1768434643685,-500.0,0.00039781,60]
[401980612,1768434643694,-2940.64484471,0.00039789,2]
[401980614,1768434643703,-500.0,0.00039836,60]
[401980616,1768434643712,-458.07906,0.00039888,30]
[401980618,1768434643721,-500.0,0.00039891,60]
[401980620,1768434643731,-572.38078481,0.00039945,60]
[401980622,1768434643740,-500.0,0.0004,120]
[401980624,1768434643749,-1753.0,0.0004,2]
[401980626,1768434643758,-151.0,0.0004,120]
[401980628,1768434643767,-150.0,0.0004,120]
[401980630,1768434643776,-151.0,0.0004,120]
[401980632,1768434643785,-2913.94047,0.0004,120]
[401980634,1768434643793,-458.07906,0.00040088,30]
[401980636,1768434643802,-151.69,0.00040175,120]
[401980638,1768434643811,-151.69,0.00040275,120]
[401980640,1768434643820,-458.07906,0.00040288,30]
[401980642,1768434643829,-2000.0,0.000403,2]
[401980644,1768434643837,-151.69,0.00040375,120]
[401980646,1768434643847,-1356.9,0.00040449,120]
[401980648,1768434643856,-151.69,0.00040475,120]
[401980650,1768434643865,-458.07906,0.00040488,30]
[401980652,1768434643873,-2206.35011691,0.00040531,2]
[401980654,1768434643882,-151.69,0.00040575,120]
[401980656,1768434643891,-906.0,0.000406,30]
[401980658,1768434643900,-554.0,0.000406,30]
[401980660,1768434643909,-2075.6,0.00040608,120]
[401980662,1768434643918,-151.69,0.00040675,120]
[401980664,1768434643927,-458.07906,0.00040688,30]
[401980666,1768434643936,-151.0,0.000407,120]
[401980668,1768434643945,-151.69,0.00040775,120]
[401980670,1768434643954,-151.0,0.000408,120]
[401980672,1768434643964,-500.0,0.00040821,120]
[401980674,1768434643974,-500.0,0.00040821,120]
[401980676,1768434643983,-500.0,0.00040821,120]
[401980678,1768434643992,-500.0,0.00040821,120]
[401980680,1768434644001,-500.0,0.00040821,120]
[401980682,1768434644010,-500.0,0.00040821,120]
[401980684,1768434644019,-500.0,0.00040821,120]
[401980686,1768434644029,-500.0,0.00040821,120]
[401980688,1768434644042,-500.0,0.00040821,120]
[401980690,1768434644051,-500.0,0.00040821,120]
[401980692,1768434644061,-500.0,0.00040821,120]
[401980694,1768434644070,-500.0,0.00040821,120]
[401980696,1768434644079,-500.0,0.00040821,120]
[401980698,1768434644089,-351.86479154,0.00040821,120]
[401980700,1768434644098,-151.69,0.00040875,120]
[401980702,1768434644108,-458.07906,0.00040888,30]
[401980704,1768434644117,-151.69,0.00040975,120]
[401980707,1768434644126,-500.0,0.00041,120]
[401980709,1768434644135,-1751.0,0.00041,30]
[401980711,1768434644144,-150.0,0.00041,120]
[401980713,1768434644153,-300.0,0.00041068,22]
[401980715,1768434644162,-151.69,0.00041075,120]
[401980717,1768434644171,-458.07906,0.00041088,30]
[401980719,1768434644179,-500.0,0.00041095,120]
[401980721,1768434644188,-357.46583831,0.00041095,120]
[401980723,1768434644198,-1289.0,0.00041096,120]
[401980725,1768434644206,-2500.0,0.00041096,120]
[401980727,1768434644216,-151.69,0.00041175,120]
[401980729,1768434644224,-151.69,0.00041275,120]
[401980731,1768434644233,-2206.35011691,0.00041285,2]
[401980733,1768434644243,-458.07906,0.00041288,30]
[401980735,1768434644252,-1356.9,0.00041289,120]
[401980737,1768434644263,-834.0,0.000413,11]
[401980739,1768434644272,-515.29,0.000413,2]
[401980741,1768434644282,-162.0,0.00041302,11]
[401980743,1768434644292,-162.0,0.00041302,11]
[401980746,1768434644302,-834.0,0.00041302,11]
[401980748,1768434644311,-834.0,0.00041306,11]
[401980749,1768434644321,-162.0,0.00041306,11]
[401980751,1768434644330,-151.69,0.00041375,120]
[401980754,1768434644341,-300.150746,0.00041417,106]
[401980756,1768434644351,-151.69,0.00041475,120]
[401980757,1768434644360,-458.07906,0.00041488,30]
[401980760,1768434644371,-631.01110241,0.000415,120]
[401980761,1768434644381,-151.0,0.000415,120]
[401980763,1768434644391,-152.0,0.00041535,4]
[401980765,1768434644401,-151.69,0.00041575,120]
[401980767,1768434644411,-151.0,0.000416,120]
[401980769,1768434644423,-1484.0135827,0.00041602,2]
[401980771,1768434644432,-3063.7838015,0.00041602,2]
[401980774,1768434644442,-13236.01224057,0.00041613,7]
[401980775,1768434644452,-162.0,0.00041617,11]
[401980777,1768434644461,-834.0,0.00041622,11]
[401980779,1768434644470,-834.0,0.00041624,11]
[401980781,1768434644479,-834.0,0.00041626,11]
[401980783,1768434644488,-834.0,0.00041626,11]
[401980785,1768434644497,-834.0,0.00041627,11]
[401980787,1768434644506,-151.69,0.00041675,120]
[401980789,1768434644515,-458.07906,0.00041688,30]
[401980791,1768434644524,-151.73755118,0.00041775,120]
[401980793,1768434644534,-18162.0,0.00041842,30]
[401980795,1768434644542,-458.07906,0.00041888,30]
[401980797,1768434644551,-211.13941296,0.00041892,14]
[401980799,1768434644560,-211.13941294,0.00041892,14]
[401980801,1768434644569,-212.13,0.000419,30]
[401980803,1768434644578,-1236.01389465,0.000419,120]
[401980805,1768434644587,-1236.01389465,0.000419,120]
[401980807,1768434644596,-1236.01389465,0.000419,120]
[401980809,1768434644605,-1236.01389465,0.000419,120]
[401980811,1768434644614,-1236.01389465,0.000419,120]
[401980813,1768434644623,-1236.01389465,0.000419,120]
[401980815,1768434644632,-1236.01389465,0.000419,120]
[401980817,1768434644642,-1236.01389465,0.000419,120]
[401980819,1768434644651,-1236.01389465,0.000419,120]
[401980821,1768434644661,-1236.01389465,0.000419,120]
[401980823,1768434644671,-1236.01389465,0.000419,120]
[401980825,1768434644680,-1236.01389465,0.000419,120]
[401980827,1768434644689,-1236.01389465,0.000419,120]
[401980829,1768434644698,-1236.01389465,0.000419,120]
[401980831,1768434644707,-1236.01389465,0.000419,120]
[401980833,1768434644716,-1236.01389465,0.000419,120]
[401980835,1768434644725,-1236.01389465,0.000419,120]
[401980837,1768434644734,-1236.01389465,0.000419,120]
[401980839,1768434644743,-1236.01389465,0.000419,120]
[401980841,1768434644752,-1236.01389465,0.000419,120]
[401980843,1768434644761,-515.29,0.000419,2]
[401980845,1768434644770,-500.0,0.00041906,7]
[401980847,1768434644779,-500.0,0.00041906,7]
[401980849,1768434644788,-510.15,0.00041906,7]
[401980851,1768434644797,-500.0,0.00041906,7]
[401980853,1768434644806,-162.0,0.00041937,16]
[401980855,1768434644815,-834.0,0.0004194,16]
[401980857,1768434644824,-834.0,0.0004194,16]
[401980859,1768434644833,-162.0,0.00041943,16]
[401980861,1768434644842,-834.0,0.00041944,16]
[401980863,1768434644852,-162.0,0.00041944,16]
[401980865,1768434644861,-1321.67,0.00041945,30]
[401980867,1768434644870,-681.96,0.00041945,30]
[401980869,1768434644880,-1323.9,0.00041945,30]
[401980871,1768434644890,-162.0,0.00041946,16]
[401980873,1768434644899,-162.0,0.00041946,16]
[401980875,1768434644908,-834.0,0.00041946,16]
[401980877,1768434644917,-162.0,0.00041946,16]
[401980879,1768434644927,-822.0,0.00041946,16]
[401980881,1768434644936,-834.0,0.00041947,16]
[401980883,1768434644944,-162.0,0.00041947,16]
[401980904,1768434645125,-162.0,0.00041947,16]
[401980906,1768434645134,-1000.0,0.0004199,120]
[401980908,1768434645143,-500.0,0.00042,120]
[401980910,1768434645153,-150.0,0.00042,120]
[401980912,1768434645162,-150.0,0.00042,120]
[401980914,1768434645171,-150.0,0.00042,120]
[401980916,1768434645180,-150.0,0.00042,120]
[401980918,1768434645189,-150.0,0.00042,120]
[401980920,1768434645198,-1751.0,0.00042,30]
[401980922,1768434645207,-1493.32,0.00042,120]
[401980924,1768434645216,-500.0,0.00042,120]
[401980926,1768434645225,-240.11387109,0.00042,120]
[401980928,1768434645234,-2206.35011691,0.00042039,2]
[401980930,1768434645242,-300.0,0.00042082,60]
[401980932,1768434645252,-1113.62,0.00042082,30]
[401980934,1768434645265,-179.36,0.00042082,30]
[401980936,1768434645274,-207.75,0.00042082,30]
[401980938,1768434645284,-467.34,0.00042082,30]
[401980940,1768434645293,-179.36,0.00042082,30]
[401980942,1768434645302,-171.62,0.00042082,30]
[401980944,1768434645311,-467.34,0.00042082,30]
[401980946,1768434645320,-179.36,0.00042082,30]
[401980948,1768434645330,-171.62,0.00042082,30]
[401980950,1768434645339,-467.34,0.00042082,30]
[401980952,1768434645347,-179.36,0.00042082,30]
[401980954,1768434645357,-171.62,0.00042082,30]
[401980956,1768434645366,-467.34,0.00042082,30]
[401980958,1768434645376,-179.36,0.00042082,30]
[401980960,1768434645386,-171.62,0.00042082,30]
[401980962,1768434645396,-467.34,0.00042082,30]
[401980964,1768434645405,-200.0,0.00042108,120]
[401980966,1768434645414,-1356.9,0.00042129,120]
[401980968,1768434645423,-151.0,0.000422,120]
[401980970,1768434645432,-1331.0,0.00042219,2]
[401980971,1768434645440,-3469.0,0.00042219,2]
[401980972,1768434645449,-614.0,0.00042219,2]
[401980973,1768434645458,-566.0,0.00042219,2]
[401980974,1768434645467,-6450.439,0.00042219,2]
[401980976,1768434645476,-150.0,0.00042248,14]
[401980978,1768434645486,-162.0,0.00042257,16]
[401980980,1768434645495,-834.0,0.00042263,16]
[401980982,1768434645505,-162.0,0.00042266,16]
[401980984,1768434645514,-162.0,0.00042266,16]
[401980986,1768434645523,-834.0,0.00042267,16]
[401980987,1768434645532,-18162.0,0.00042274,30]
[401980989,1768434645542,-2563.74337966,0.0004228,2]
[401980992,1768434645551,-4700.0,0.000423,15]
[401980993,1768434645560,-758.84,0.000423,14]
[401980996,1768434645570,-515.29,0.000423,2]
[401980998,1768434645580,-151.0,0.000424,120]
[401981000,1768434645589,-900.0,0.000424,15]
[401981002,1768434645600,-500.0,0.00042466,10]
[401981004,1768434645609,-4706.0,0.00042475,7]
[401981006,1768434645618,-10000.0,0.000425,2]
[401981008,1768434645627,-515.29,0.000425,2]
[401981010,1768434645637,-900.0,0.000425,15]
[401981012,1768434645646,-35695.44518167,0.000425,30]
[401981014,1768434645655,-162.0,0.00042574,16]
[401981016,1768434645664,-162.0,0.0004258,16]
[401981018,1768434645673,-162.0,0.00042584,16]
[401981020,1768434645681,-162.0,0.00042584,16]
[401981022,1768434645690,-834.0,0.00042586,16]
[401981024,1768434645700,-150.0,0.00042589,14]
[401981026,1768434645709,-16480.17566363,0.0004259,2]
[401981028,1768434645718,-3180.10818656,0.000426,120]
[401981030,1768434645728,-900.0,0.000426,15]
[401981032,1768434645738,-648.16664916,0.000426,2]
[401981034,1768434645747,-300.0,0.0004263,90]
[401981036,1768434645756,-300.0,0.0004263,90]
[401981038,1768434645764,-300.0,0.0004263,90]
[401981040,1768434645773,-300.0,0.0004263,90]
[401981042,1768434645782,-150.0,0.00042639,120]
[401981044,1768434645793,-150.0,0.00042639,120]
[401981046,1768434645802,-96773.77501916,0.0004266,10]
[401981048,1768434645812,-151.0,0.00042681,120]
[401981050,1768434645821,-151.0,0.00042682,120]
[401981052,1768434645830,-151.0,0.00042682,120]
[401981054,1768434645839,-151.0,0.00042682,120]
[401981056,1768434645848,-151.0,0.00042682,120]
[401981058,1768434645856,-197.502244,0.00042682,120]
[401981060,1768434645865,-151.0,0.00042682,120]
[401981062,1768434645874,-151.0,0.00042682,120]
[401981064,1768434645883,-151.0,0.00042682,120]
[401981066,1768434645893,-151.0,0.00042682,120]
[401981068,1768434645902,-151.0,0.00042682,120]
[401981070,1768434645911,-151.0,0.00042682,120]
[401981072,1768434645924,-151.0,0.00042682,120]
[401981074,1768434645933,-171.474191,0.00042682,120]
[401981076,1768434645942,-151.0,0.00042682,120]
[401981078,1768434645951,-151.0,0.00042682,120]
[401981080,1768434645960,-157.000414,0.00042682,120]
[401981082,1768434645969,-151.0,0.00042682,120]
[401981084,1768434645979,-151.0,0.00042682,120]
[401981086,1768434645988,-151.0,0.00042682,120]
[401981089,1768434645997,-151.0,0.00042682,120]
[401981091,1768434646006,-151.0,0.00042682,120]
[401981093,1768434646015,-151.0,0.00042682,120]
[401981095,1768434646023,-151.0,0.00042682,120]
[401981097,1768434646034,-151.0,0.00042682,120]
[401981099,1768434646044,-151.0,0.00042682,120]
[401981101,1768434646054,-151.0,0.00042682,120]
[401981103,1768434646063,-151.0,0.00042682,120]
[401981105,1768434646073,-151.0,0.00042682,120]
[401981107,1768434646083,-151.0,0.00042682,120]
[401981109,1768434646092,-151.0,0.00042682,120]
[401981111,1768434646102,-151.0,0.00042682,120]
[401981113,1768434646113,-185.88668,0.00042682,120]
[401981115,1768434646122,-151.0,0.00042682,120]
[401981117,1768434646130,-151.0,0.00042682,120]
[401981119,1768434646140,-151.0,0.00042682,120]
[401981121,1768434646149,-169.194235,0.00042682,120]
[401981123,1768434646158,-151.0,0.00042682,120]
[401981125,1768434646167,-151.0,0.00042682,120]
[401981127,1768434646176,-151.0,0.00042682,120]
[401981129,1768434646185,-151.0,0.00042682,120]
[401981131,1768434646198,-151.0,0.00042682,120]
[401981134,1768434646216,-151.0,0.00042682,120]
[401981137,1768434646232,-151.0,0.00042682,120]
[401981140,1768434646249,-151.0,0.00042682,120]
[401981143,1768434646267,-151.0,0.00042682,120]
[401981145,1768434646281,-151.0,0.00042682,120]
[401981148,1768434646297,-151.0,0.00042682,120]
[401981151,1768434646315,-151.0,0.00042682,30]
[401981154,1768434646333,-151.0,0.00042682,120]
[401981157,1768434646351,-151.0,0.00042682,120]
[401981160,1768434646369,-151.0,0.00042682,10]
[401981162,1768434646385,-151.0,0.00042682,120]
[401981165,1768434646404,-222.401911,0.00042682,120]
[401981168,1768434646419,-151.0,0.00042682,120]
[401981170,1768434646431,-151.0,0.00042682,120]
[401981173,1768434646449,-151.0,0.00042682,120]
[401981176,1768434646460,-185.40492,0.00042682,120]
[401981178,1768434646476,-741112.97002414,0.00042683,30]
[401981394,1768434648502,-176.43590763,0.00015866,2]
[401981396,1768434648512,-99.57357084,0.00024774,2]
[401981399,1768434648532,-746.92492681,0.00024774,2]
[401981442,1768434649005,-151.0,0.00016863,2]
[401981443,1768434649014,-151.0,0.00016863,2]
[401981444,1768434649022,-593.15897997,0.00024774,2]
[401981445,1768434649052,-16981.27772621,0.00024774,2]
[401981446,1768434649063,-598.1162004,0.00024774,2]
[401981447,1768434649140,-2764.81675392,0.00024774,2]
[401981448,1768434649149,-684.91152496,0.000248,2]
[401981450,1768434649157,-684.91152494,0.0002737,2]
[401981452,1768434649166,-504.0,0.00028566,3]
[401981454,1768434649175,-504.0,0.00029994,5]
[401981456,1768434649184,-504.0,0.00031423,6]
[401981458,1768434649194,-504.0,0.00032852,8]
[401981460,1768434649203,-504.0,0.00034281,9]
[401981462,1768434649212,-504.0,0.00035709,11]
[401981464,1768434649221,-4822.0,0.00036219,2]
[401981466,1768434649231,-504.0,0.00037138,12]
[401981468,1768434649240,-504.0,0.00038567,14]
[401981470,1768434649249,-4820.0,0.00039219,2]
[401981472,1768434649258,-504.0,0.00039996,16]
[401981474,1768434649267,-504.0,0.00041424,17]
[401981476,1768434649276,-179.36,0.00042082,30]
[401981478,1768434649286,-171.62,0.00042082,30]
[401981480,1768434649295,-657.56,0.00042082,30]
[401981482,1768434649303,-247.49287586,0.00042683,30]
[401981484,1768434649312,-151.0,0.00042684,120]
[401981486,1768434649320,-151.0,0.00042684,120]
[401981488,1768434649330,-151.0,0.00042684,120]
[401981490,1768434649339,-151.0,0.00042684,120]
[401981492,1768434649348,-151.0,0.00042684,120]
[401981494,1768434649357,-173.105207,0.00042684,120]
[401981496,1768434649366,-175.768483,0.00042684,120]
[401981498,1768434649375,-218.106124,0.00042684,120]
[401981500,1768434649384,-151.0,0.00042684,120]
[401981502,1768434649393,-151.0,0.00042684,120]
[401981504,1768434649402,-151.0,0.00042684,120]
[401981506,1768434649411,-151.0,0.00042684,120]
[401981508,1768434649420,-151.0,0.00042684,120]
[401981510,1768434649429,-151.0,0.00042684,120]
[401981512,1768434649439,-151.0,0.00042684,60]
[401981514,1768434649449,-151.0,0.00042684,120]
[401981516,1768434649458,-151.0,0.00042684,120]
[401981518,1768434649467,-152.025628,0.00042684,120]
[401981519,1768434649476,-151.0,0.00042684,120]
[401981521,1768434649486,-151.0,0.00042684,120]
[401981523,1768434649495,-151.0,0.00042684,120]
[401981525,1768434649504,-151.0,0.00042684,120]
[401981527,1768434649514,-151.0,0.00042684,120]
[401981530,1768434649524,-151.0,0.00042684,120]
[401981532,1768434649534,-162.585717,0.00042684,120]
[401981533,1768434649543,-157.93445,0.00042684,120]
[401981535,1768434649552,-151.0,0.00042684,120]
[401981537,1768434649561,-185.17054,0.00042684,120]
[401981539,1768434649570,-177.383743,0.00042684,120]
[401981541,1768434649580,-174.911416,0.00042684,120]
[401981543,1768434649590,-151.0,0.00042684,120]
[401981545,1768434649598,-151.0,0.00042684,120]
[401981547,1768434649608,-151.0,0.00042684,120]
[401981549,1768434649617,-151.0,0.00042684,120]
[401981551,1768434649626,-151.0,0.00042684,120]
[401981553,1768434649636,-151.0,0.00042684,120]
[401981555,1768434649645,-151.0,0.00042684,120]
[401981557,1768434649654,-151.0,0.00042684,120]
[401981559,1768434649663,-151.0,0.00042684,120]
[401981561,1768434649672,-178.84402325,0.00042684,120]
[401981563,1768434649686,-151.0,0.00042684,120]
[401981565,1768434649695,-151.0,0.00042684,120]
[401981567,1768434649704,-151.0,0.00042684,120]
[401981569,1768434649713,-1726.900818,0.00042684,120]
[401981571,1768434649722,-151.0,0.00042684,120]
[401981573,1768434649732,-1726.900818,0.00042684,120]
[401981575,1768434649742,-1726.900818,0.00042684,120]
[401981577,1768434649751,-1726.900818,0.00042684,120]
[401981579,1768434649760,-167.053992,0.00042684,7]
[401981581,1768434649769,-167.053992,0.00042684,7]
[401981583,1768434649778,-167.053992,0.00042684,7]
[401981585,1768434649787,-167.053992,0.00042684,7]
[401981587,1768434649798,-151.0,0.00042684,120]
[401981590,1768434649808,-151.0,0.00042684,120]
[401981592,1768434649817,-151.0,0.00042684,120]
[401981594,1768434649827,-151.0,0.00042684,120]
[401981595,1768434649836,-151.0,0.00042684,120]
[401981597,1768434649846,-151.0,0.00042684,120]
[401981600,1768434649856,-154.621151,0.00042684,120]
[401981602,1768434649866,-154.621151,0.00042684,120]
[401981604,1768434649875,-154.621151,0.00042684,120]
[401981606,1768434649885,-154.621151,0.00042684,120]
[401981608,1768434649894,-151.0,0.00042684,120]
[401981610,1768434649903,-151.0,0.00042684,7]
[401981612,1768434649913,-151.0,0.00042684,120]
[401981614,1768434649922,-151.0,0.00042684,120]
[401981616,1768434649931,-151.0,0.00042684,120]
[401981618,1768434649940,-151.0,0.00042684,120]
[401981620,1768434649949,-151.0,0.00042684,120]
[401981622,1768434649958,-176.847926,0.00042684,120]
[401981624,1768434649967,-599.741178,0.00042684,120]
[401981626,1768434649976,-151.0,0.00042684,120]
[401981628,1768434649985,-151.0,0.00042684,120]
[401981630,1768434649995,-599.741178,0.00042684,120]
[401981632,1768434650004,-599.741178,0.00042684,120]
[401981634,1768434650014,-151.0,0.00042684,120]
[401981636,1768434650023,-599.741178,0.00042684,120]
[401981638,1768434650033,-200.003875,0.00042684,120]
[401981640,1768434650042,-200.003875,0.00042684,120]
[401981641,1768434650051,-200.003875,0.00042684,120]
[401981643,1768434650061,-200.003875,0.00042684,120]
[401981645,1768434650070,-151.0,0.0004269,120]
[401981648,1768434650082,-431.241414,0.0004269,120]
[401981650,1768434650093,-180.489834,0.0004269,120]
[401981652,1768434650106,-431.241414,0.0004269,120]
[401981654,1768434650115,-431.241414,0.0004269,120]
[401981656,1768434650124,-431.241414,0.0004269,120]
[401981658,1768434650133,-151.0,0.0004269,120]
[401981660,1768434650142,-151.0,0.0004269,30]
[401981661,1768434650151,-151.0,0.0004269,120]
[401981663,1768434650159,-151.0,0.0004269,30]
[401981664,1768434650168,-155.197176,0.0004269,30]
[401981666,1768434650178,-151.0,0.0004269,120]
[401981668,1768434650187,-331.93847077,0.00042691,7]
[401981670,1768434650195,-16480.17566361,0.00042691,2]
[401981672,1768434650204,-174.28247039,0.00042693,2]
[401981674,1768434650214,-1000.0,0.00042696,14]
[401981676,1768434650223,-648.16664914,0.00042697,2]
[401981678,1768434650232,-119670.33167431,0.000427,120]
[401981680,1768434650245,-355.99382796,0.000427,120]
[401981682,1768434650256,-5000.0,0.000427,120]
[401981685,1768434650267,-1354.57639,0.000427,120]
[401981689,1768434650308,-4281.87359996,0.000427,120]
[401981805,1768434978316,-1200.0,0.00015865,2]
[401981806,1768434978344,-300.0,0.00015865,2]
[401981807,1768434978372,-500.0,0.00015866,2]
[401981808,1768434978400,-300.0,0.00015866,2]
[401981809,1768434978420,-200.0,0.00015866,2]
[401981810,1768434978429,-500.0,0.00015866,2]
[401981811,1768434978438,-500.0,0.00015866,2]
[401981812,1768434978448,-300.0,0.00015866,2]
[401981813,1768434978466,-200.0,0.00015866,2]
[401981814,1768434978475,-300.0,0.00015866,2]
[401981815,1768434978494,-200.0,0.00015866,2]
[401981816,1768434978504,-300.0,0.00015866,2]